bitfinex-derivatives/quotes_SOLF0:USTF0_20260121
["timestamp","ask_amount","ask_price","bid_price","bid_amount"]
[1769018026326,1.3234055,126.9,126.8,3.30961233]
[1769018026634,1.3234055,126.88,126.77,113.82136634]
[1769018026841,1.3234055,126.88,126.77,3.29926634]
[1769018027324,1.3234055,126.88,126.79,7.1042]
[1769018027834,1.3234055,126.87,126.77,3.29926634]
[1769018028027,299.3834055,126.87,126.77,3.29926634]
[1769018028335,1.3234055,126.86,126.76,110.5384]
[1769018028529,298.06,126.85,126.75,113.84316634]
[1769018028732,299.3834055,126.85,126.75,3.29926634]
[1769018028935,1.3234055,126.88,126.77,3.29926634]
[1769018029131,1.3234055,126.87,126.77,3.29926634]
[1769018030436,8.4234055,126.87,126.78,7.1047]
[1769018031137,1.3234055,126.85,126.76,7.1057]
[1769018031435,1.3234055,126.85,126.74,113.85076634]
[1769018031738,1.3234055,126.85,126.75,113.84596634]
[1769018031938,298.12,126.84,126.76,3.29926634]
[1769018033025,298.12,126.84,126.77,7.1053]
[1769018033740,299.4434055,126.84,126.76,3.29926634]
[1769018033937,1.3234055,126.83,126.73,3.29926634]
[1769018034629,415.10620925,126.84,126.73,10.40666634]
[1769018034630,8.4262055,126.82,126.73,10.40666634]
[1769018035537,298.2,126.81,126.73,10.40666634]
[1769018035744,299.5234055,126.81,126.73,3.29926634]
[1769018035936,299.5234055,126.81,126.71,3.29926634]
[1769018036733,306.6267055,126.81,126.73,7.1076]
[1769018036935,1.3234055,126.8,126.71,3.29926634]
[1769018038139,8.4273055,126.8,126.71,3.29926634]
[1769018039039,8.42973626,126.79,126.69,110.5922]
[1769018039229,1.32523626,126.79,126.69,113.90556]
[1769018039626,8.42983626,126.79,126.7,7.1091]
[1769018039843,8.42983626,126.79,126.69,3.31336]
[1769018040231,1.32523626,126.79,126.7,3.31336]
[1769018040437,298.28,126.8,126.7,3.31336]
[1769018041335,8.42823626,126.82,126.73,3.31336]
[1769018041538,1.32523626,126.82,126.73,3.31336]
[1769018041935,8.42803626,126.82,126.74,7.1071]
[1769018042134,1.32523626,126.81,126.7,3.31336]
[1769018042639,1.32523626,126.81,126.72,3.31336]
[1769018042838,298.3,126.82,126.73,3.31336]
[1769018043728,1.32523626,126.84,126.73,3.31336]
[1769018043931,116.97110925,126.86,126.73,3.31336]
[1769018043932,306.74733626,126.83,126.75,7.1065]
[1769018044342,1.32523626,126.83,126.74,3.31336]
[1769018044638,8.42613626,126.86,126.76,3.31336]
[1769018044837,1.32523626,126.89,126.78,3.31336]
[1769018045042,298.32,126.88,126.78,3.31336]
[1769018045229,8.42513626,126.87,126.78,10.41776]
[1769018045433,8.42513626,126.87,126.78,3.31336]
[1769018045836,8.42583626,126.86,126.78,3.31336]
[1769018046046,1.32523626,126.86,126.76,3.31336]
[1769018046238,299.64523626,126.86,126.76,3.31336]
[1769018046442,306.74573626,126.86,126.78,7.1048]
[1769018046745,306.74573626,126.86,126.76,3.31336]
[1769018046933,8.42573626,126.86,126.76,3.31336]
[1769018048040,8.42573626,126.86,126.79,7.1043]
[1769018048547,306.74573626,126.86,126.79,7.1043]
[1769018048742,1.32523626,126.85,126.76,3.31336]
[1769018049436,8.42633626,126.85,126.76,3.31336]
[1769018051043,8.42633626,126.85,126.78,7.1048]
[1769018051337,110.4288,126.89,126.76,3.31336]
[1769018051338,7.1003,126.87,126.77,3.31336]
[1769018051541,8.42553626,126.87,126.8,7.1038]
[1769018051746,306.74553626,126.87,126.8,7.1038]
[1769018051932,306.74553626,126.87,126.77,3.31336]
[1769018052136,8.42553626,126.87,126.77,3.31336]
[1769018052337,8.42553626,126.87,126.78,3.31336]
[1769018052534,8.42553626,126.87,126.78,10.41776]
[1769018052945,8.42563626,126.86,126.78,10.41776]
[1769018053141,8.42563626,126.86,126.79,7.1043]
[1769018053440,8.42403626,126.89,126.79,3.31336]
[1769018053839,1.32523626,126.88,126.79,3.31336]
[1769018054247,8.42453626,126.88,126.81,7.1031]
[1769018055439,7.0987,126.89,126.82,7.1025]
[1769018056251,306.72200352,126.91,126.82,7.1025]
[1769018056452,1.32380352,126.9,126.82,3.44245722]
[1769018057054,1.32380352,126.9,126.84,7.1015]
[1769018058054,116.89360925,126.95,126.84,7.1015]
[1769018058254,299.60380352,126.93,126.85,7.1009]
[1769018058554,299.60380352,126.93,126.84,3.44245722]
[1769018058555,1.32380352,126.93,126.84,3.44245722]
[1769018058947,1.32380352,126.93,126.85,7.1008]
[1769018059146,1.32380352,126.92,126.85,7.1008]
[1769018060255,7.0966,126.93,126.85,10.54325722]
[1769018061644,7.0966,126.93,126.86,7.1004]
[1769018061848,8.42040352,126.93,126.86,7.1004]
[1769018062250,1.32380352,126.92,126.86,7.1004]
[1769018062455,1.32380352,126.92,126.84,7.1011]
[1769018062456,1.32380352,126.91,126.84,7.1011]
[1769018063355,8.42010352,126.94,126.84,3.44245722]
[1769018063947,306.64010352,126.94,126.84,3.44245722]
[1769018064355,1.32380352,126.92,126.86,7.1001]
[1769018067554,1.32380352,126.95,126.86,3.44245722]
[1769018067952,6.51372323,126.96,126.86,3.44245722]
[1769018068157,1.32380352,126.98,126.9,10.54065722]
[1769018068362,1.32380352,126.98,126.9,3.44245722]
[1769018068561,298.18,127.0,126.9,3.44245722]
[1769018068747,299.50380352,127.0,126.9,3.44245722]
[1769018069256,1.32380352,127.0,126.9,3.44245722]
[1769018069461,1.32380352,127.0,126.9,10.54015722]
[1769018069854,7.0937,126.98,126.91,7.0976]
[1769018070253,8.41750352,126.98,126.9,3.44245722]
[1769018071361,8.41750352,126.98,126.91,7.0975]
[1769018072356,7.0943,126.97,126.9,10.54065722]
[1769018072756,1.32380352,126.98,126.9,10.54065722]
[1769018073366,8.41760352,126.98,126.9,10.54065722]
[1769018073859,1.32380352,126.95,126.88,7.0989]
[1769018074452,8.41940352,126.95,126.88,7.0989]
[1769018074656,1.32380352,126.95,126.88,7.0989]
[1769018075157,8.41980352,126.94,126.86,3.44245722]
[1769018075355,1.32380352,126.97,126.87,3.44245722]
[1769018075555,7.0967,126.93,126.87,3.44245722]
[1769018075759,1.32380352,126.94,126.84,3.44245722]
[1769018076464,8.41980352,126.94,126.87,7.0998]
[1769018076667,305.93752675,126.96,126.87,10.54225722]
[1769018076855,1.32380352,126.94,126.83,3.44245722]
[1769018077058,110.3766,126.95,126.83,3.44245722]
[1769018077059,1.32380352,126.92,126.83,10.54405722]
[1769018077567,1.32380352,126.92,126.83,3.44245722]
[1769018077756,1.32380352,126.92,126.84,10.54375722]
[1769018077954,1.32380352,126.92,126.84,3.44245722]
[1769018078862,1.32380352,126.92,126.85,7.1008]
[1769018079068,6.51372323,126.96,126.86,3.44245722]
[1769018079268,1.32380352,126.97,126.86,3.44245722]
[1769018080068,7.095,126.96,126.88,7.0992]
[1769018080466,8.41920352,126.95,126.86,10.54245722]
[1769018080663,8.41920352,126.95,126.86,3.44245722]
[1769018080855,1.32380352,126.95,126.86,3.44245722]
[1769018081963,1.32380352,126.95,126.87,7.0997]
[1769018082971,1.32380352,126.95,126.88,3.44245722]
[1769018084467,305.1949,126.96,126.86,7.1]
[1769018084468,1.32380352,126.94,126.86,7.1]
[1769018084869,1.32380352,126.94,126.86,10.54245722]
[1769018085277,8.41980352,126.94,126.86,10.54245722]
[1769018085477,1.32380352,126.93,126.86,7.1]
[1769018086178,1.31806254,126.92,126.84,10.29712949]
[1769018086778,1.31806254,126.92,126.85,10.29692949]
[1769018088176,8.41526254,126.92,126.83,3.19602949]
[1769018089484,8.41576254,126.91,126.84,7.1015]
[1769018089677,1.31806254,126.91,126.84,7.1015]
[1769018090381,8.41576254,126.91,126.84,7.1015]
[1769018090579,1.31806254,126.91,126.8,3.19602949]
[1769018090777,1.31806254,126.9,126.8,3.19602949]
[1769018091884,7.0987,126.89,126.81,7.1027]
[1769018092181,7.0987,126.89,126.81,10.29872949]
[1769018093079,7.0978,126.91,126.83,3.19602949]
[1769018093379,299.43806254,126.93,126.83,3.19602949]
[1769018094982,306.53506254,126.93,126.84,7.1014]
[1769018095377,8.41506254,126.93,126.84,10.29742949]
[1769018095679,306.55506254,126.93,126.84,10.29742949]
[1769018096184,126.5117665,126.96,126.87,3.19602949]
[1769018096185,8.57559699,126.96,126.87,3.19602949]
[1769018096379,1.31806254,126.99,126.89,3.19602949]
[1769018096979,7.25753445,127.01,126.92,3.19602949]
[1769018097182,8.57559699,127.01,126.92,3.19602949]
[1769018097482,1.31806254,127.0,126.92,3.19602949]
[1769018098884,1.31806254,127.0,126.93,7.0964]
[1769018100889,8.41086254,127.0,126.92,3.19602949]
[1769018101285,1.31806254,127.0,126.92,10.29302949]
[1769018101485,1.31806254,127.0,126.92,3.19602949]
[1769018102188,299.39790646,127.02,126.94,10.42288054]
[1769018102386,1.31790646,127.02,126.94,10.42288054]
[1769018102588,299.39790646,127.02,126.94,10.42288054]
[1769018103287,1.31790646,127.01,126.91,3.32718054]
[1769018104081,1.31790646,126.99,126.88,3.32718054]
[1769018104285,1.31790646,126.97,126.88,3.32718054]
[1769018104688,1.31790646,126.95,126.85,3.32718054]
[1769018104891,1.31790646,126.94,126.85,3.32718054]
[1769018105088,1.31790646,126.93,126.85,10.42768054]
[1769018105488,1.31790646,126.91,126.82,3.32718054]
[1769018105688,8.41570646,126.91,126.83,7.102]
[1769018105996,1.31790646,126.91,126.82,3.32718054]
[1769018106993,8.41570646,126.91,126.82,10.42968054]
[1769018107703,298.06,126.93,126.84,3.32718054]
[1769018108097,299.37790646,126.93,126.84,3.32718054]
[1769018108301,306.47450646,126.93,126.84,3.32718054]
[1769018108599,1.31790646,126.92,126.84,3.32718054]
[1769018109499,1.31790646,126.92,126.84,10.42858054]
[1769018109999,7.0963,126.94,126.86,3.32718054]
[1769018110502,1.31790646,126.93,126.83,3.32718054]
[1769018111992,8.41510646,126.92,126.83,3.32718054]
[1769018112198,15.17097141,126.95,126.83,3.32718054]
[1769018112391,298.12,126.94,126.83,3.32718054]
[1769018112592,1.31790646,126.93,126.84,3.32718054]
[1769018113710,1.31790646,126.93,126.84,10.42848054]
[1769018113893,1.31790646,126.93,126.81,3.32718054]
[1769018114089,8.41620646,126.9,126.81,3.32718054]
[1769018114495,1.31790646,126.9,126.81,3.32718054]
[1769018114697,8.41540646,126.92,126.83,3.32718054]
[1769018115404,1.31790646,126.92,126.84,3.32718054]
[1769018116403,7.0966,126.93,126.85,3.14213945]
[1769018116605,1.31640169,126.93,126.85,3.14213945]
[1769018116796,1.31640169,126.9,126.82,10.24443945]
[1769018117000,1.31640169,126.9,126.83,3.14213945]
[1769018117600,8.41460169,126.9,126.83,3.14213945]
[1769018117996,1.31640169,126.9,126.83,3.14213945]
[1769018120207,8.41460169,126.9,126.83,3.14213945]
[1769018121604,1.31640169,126.89,126.76,117.04682323]
[1769018121811,1.31640169,126.88,126.77,3.14213945]
[1769018122205,7.0999,126.87,126.77,7.105]
[1769018122409,7.0999,126.87,126.78,3.14213945]
[1769018123306,1.31640169,126.88,126.8,3.14213945]
[1769018123507,110.4145,126.91,126.8,3.14213945]
[1769018123508,1.31640169,126.91,126.8,3.14213945]
[1769018123708,1.31640169,126.91,126.82,3.14213945]
[1769018123709,7.0988,126.89,126.82,3.14213945]
[1769018124205,7.099,126.89,126.82,3.14213945]
[1769018124402,111.71120169,126.93,126.82,3.14213945]
[1769018124709,1.31640169,126.93,126.82,3.14213945]
[1769018124908,1.31640169,126.93,126.83,3.14213945]
[1769018125515,1.31640169,126.92,126.83,3.14213945]
[1769018128015,7.0988,126.89,126.83,3.14213945]
[1769018128406,110.3876,126.94,126.84,3.14213945]
[1769018128606,1.31640169,126.92,126.84,3.14213945]
[1769018130314,7.0976,126.91,126.84,3.14213945]
[1769018130707,7.0982,126.9,126.82,3.14213945]
[1769018131709,7.0988,126.89,126.82,3.14213945]
[1769018133015,7.0981,126.91,126.83,3.14213945]
[1769018133919,7.0981,126.91,126.84,3.14213945]
[1769018134414,1.31640169,126.93,126.84,3.14213945]
[1769018134618,7.0969,126.93,126.86,3.14213945]
[1769018135516,1.31640169,126.93,126.84,3.14213945]
[1769018137019,7.0971,126.92,126.85,3.14213945]
[1769018137406,1.31640169,126.93,126.85,3.14213945]
[1769018137807,8.41340169,126.93,126.85,3.14213945]
[1769018138119,1.31640169,126.93,126.85,3.14213945]
[1769018139626,7.0977,126.91,126.85,3.14213945]
[1769018139918,409.85320169,126.95,126.85,3.14213945]
[1769018140311,7.0971,126.92,126.85,3.14213945]
[1769018141315,1.31640169,126.96,126.87,3.14213945]
[1769018141526,111.68520169,126.96,126.87,3.14213945]
[1769018141715,1.31640169,126.94,126.87,3.14213945]
[1769018142014,2.65243492,126.95,126.87,3.14213945]
[1769018142608,2.65243492,126.97,126.89,3.14213945]
[1769018143213,7.0949,126.96,126.89,3.14213945]
[1769018143409,2.65243492,126.97,126.86,3.14213945]
[1769018143410,3.96883661,126.95,126.86,3.14213945]
[1769018143818,3.96883661,126.93,126.86,3.14213945]
[1769018144413,7.0971,126.92,126.86,3.14213945]
[1769018144615,3.96883661,126.93,126.86,3.14213945]
[1769018144813,2.65243492,126.92,126.86,3.14213945]
[1769018145010,9.74963492,126.92,126.86,3.14213945]
[1769018145217,2.65243492,126.92,126.86,3.14213945]
[1769018147423,9.74953492,126.92,126.86,3.14213945]
[1769018148632,7.0977,126.91,126.86,3.14213945]
[1769018151625,7.0977,126.91,126.84,3.23968946]
[1769018151927,7.0971,126.92,126.85,3.23968946]
[1769018152534,14.43574172,126.94,126.86,3.23968946]
[1769018152729,7.0964,126.94,126.86,3.23968946]
[1769018152932,7.0964,126.94,126.87,3.23968946]
[1769018153326,7.0965,126.93,126.87,3.23968946]
[1769018153535,9.74893492,126.93,126.87,3.23968946]
[1769018153738,7.0965,126.93,126.87,3.23968946]
[1769018154033,9.74893492,126.93,126.87,3.23968946]
[1769018156136,2.65243492,126.93,126.87,3.23968946]
[1769018156334,7.0959,126.94,126.87,3.23968946]
[1769018156637,2.65243492,126.95,126.87,3.23968946]
[1769018156837,9.99177664,126.97,126.87,3.23968946]
[1769018157341,8.41666656,126.96,126.88,10.33888946]
[1769018157838,2.65243492,126.95,126.88,3.23968946]
[1769018158039,7.096,126.94,126.88,3.23968946]
[1769018160631,9.74903492,126.93,126.85,3.24111857]
[1769018161543,3.97360516,126.91,126.85,3.24111857]
[1769018162731,15.77684441,126.94,126.86,3.24111857]
[1769018162937,8.41757024,126.94,126.86,3.24111857]
[1769018163342,14.45457417,126.96,126.87,3.24111857]
[1769018163538,7.35927417,126.96,126.87,3.24111857]
[1769018163741,1.32117024,126.99,126.91,3.24111857]
[1769018164845,1.32117024,126.97,126.88,10.34001857]
[1769018165138,1.32117024,126.97,126.88,3.24111857]
[1769018165940,7.0955,126.95,126.88,3.24111857]
[1769018166542,1.32117024,126.97,126.87,3.24111857]
[1769018166738,1.32117024,126.96,126.87,3.24111857]
[1769018168030,7.0962,126.94,126.87,3.24111857]
[1769018168437,8.41637024,126.96,126.87,3.24111857]
[1769018168633,1.32117024,126.96,126.87,3.24111857]
[1769018170039,7.0954,126.95,126.89,3.24111857]
[1769018170238,1.32117024,126.96,126.89,3.24111857]
[1769018171036,8.41597024,126.96,126.89,3.24111857]
[1769018172845,1.32117024,126.95,126.89,3.24111857]
[1769018173049,1.32117024,126.94,126.87,3.24111857]
[1769018173246,7.35927417,126.97,126.87,3.24111857]
[1769018173247,1.32117024,126.97,126.87,3.24111857]
[1769018173444,1.32117024,126.97,126.88,3.24111857]
[1769018174249,1.32117024,126.97,126.9,10.33921857]
[1769018176150,8.41547024,126.97,126.9,3.24111857]
[1769018176450,8.41547024,126.97,126.88,10.25553105]
[1769018176451,1.31820095,126.96,126.88,10.25553105]
[1769018177352,8.41360095,126.96,126.88,3.15663105]
[1769018180058,7.0971,126.93,126.85,3.15663105]
[1769018180556,7.0971,126.92,126.85,3.15663105]
[1769018181645,7.0961,126.94,126.86,3.15663105]
[1769018182259,7.0965,126.93,126.87,3.15663105]
[1769018182761,1.31820095,126.94,126.82,3.15663105]
[1769018183458,7.0976,126.92,126.85,3.15663105]
[1769018184062,7.0977,126.91,126.85,3.15663105]
[1769018184256,1.31820095,126.93,126.83,3.15663105]
[1769018184456,1.31820095,126.92,126.83,3.15663105]
[1769018184759,7.0982,126.9,126.83,3.15663105]
[1769018185655,7.0976,126.91,126.84,3.15663105]
[1769018188155,8.41640095,126.9,126.84,3.15663105]
[1769018188364,1.31820095,126.9,126.8,3.15663105]
[1769018188753,7.0994,126.88,126.81,10.25983105]
[1769018189055,2.65541959,126.86,126.78,3.15663105]
[1769018189251,2.65541959,126.84,126.78,3.15663105]
[1769018189458,2.65541959,126.82,126.74,3.15663105]
[1769018189664,2.65541959,126.82,126.75,3.15663105]
[1769018189866,3.97362054,126.84,126.76,3.15663105]
[1769018190954,1.31820095,126.84,126.76,3.15663105]
[1769018191156,8.67747512,126.87,126.78,3.15663105]
[1769018191351,1.31820095,126.87,126.78,3.15663105]
[1769018191556,8.67747512,126.89,126.78,3.15663105]
[1769018191858,15.77637512,126.89,126.8,3.15663105]
[1769018192261,1.31820095,126.88,126.8,3.15663105]
[1769018192565,7.35927417,126.9,126.81,3.15663105]
[1769018192770,8.67747512,126.89,126.81,3.15663105]
[1769018192975,1.31820095,126.89,126.81,3.15663105]
[1769018193451,1.31820095,126.88,126.81,3.15663105]
[1769018193656,1.31820095,126.88,126.78,10.26113105]
[1769018193862,1.31820095,126.88,126.79,3.15663105]
[1769018194259,8.41770095,126.88,126.8,3.15663105]
[1769018195766,1.31820095,126.87,126.8,3.15663105]
[1769018196167,8.41820095,126.87,126.8,3.15663105]
[1769018197764,1.31820095,126.87,126.8,3.15663105]
[1769018197972,7.0992,126.89,126.8,3.15663105]
[1769018198173,8.41740095,126.89,126.8,3.15663105]
[1769018199071,8.41760095,126.88,126.8,3.15663105]
[1769018199272,1.31820095,126.87,126.8,3.15663105]
[1769018199769,1.31820095,126.87,126.8,10.26033105]
[1769018200072,7.84218758,126.9,126.81,3.15663105]
[1769018200470,1.31820095,126.89,126.81,3.15663105]
[1769018200672,7.0995,126.88,126.81,3.15663105]
[1769018200863,8.41770095,126.88,126.81,3.15663105]
[1769018202273,1.31820095,126.92,126.82,3.15663105]
[1769018202873,8.41580095,126.91,126.83,7.1019]
[1769018203072,8.41580095,126.91,126.83,10.25853105]
[1769018203964,7.0982,126.9,126.83,10.25853105]
[1769018204165,8.41640095,126.9,126.83,10.25853105]
[1769018204570,1.31820095,126.9,126.83,10.25853105]
[1769018206678,8.41519882,126.93,126.85,3.39462419]
[1769018207268,8.41519882,126.93,126.86,3.39462419]
[1769018208777,8.41549882,126.92,126.83,10.49622419]
[1769018209079,1.31829882,126.91,126.83,10.49622419]
[1769018209885,7.0982,126.9,126.83,10.49622419]
[1769018210567,8.41649882,126.9,126.83,10.49622419]
[1769018211170,7.84228545,126.93,126.84,10.49592419]
[1769018211477,1.31829882,126.92,126.81,3.39462419]
[1769018212267,7.0982,126.9,126.83,3.39462419]
[1769018212879,8.41649882,126.9,126.83,3.39462419]
[1769018213665,1.31829882,126.88,126.77,3.39462419]
[1769018213872,1.31829882,126.88,126.74,110.5486]
[1769018213873,1.31829882,126.85,126.74,3.39462419]
[1769018214072,1.31829882,126.83,126.74,3.39462419]
[1769018214565,8.42069882,126.83,126.74,3.39462419]
[1769018214771,1.31829882,126.82,126.71,3.39462419]
[1769018214969,1.31829882,126.8,126.71,3.39462419]
[1769018215779,1.31829882,126.8,126.72,3.39462419]
[1769018216878,1.31829882,126.8,126.73,7.1074]
[1769018217175,8.42079882,126.83,126.73,10.50202419]
[1769018217386,1.31829882,126.83,126.74,3.39462419]
[1769018217578,1.31829882,126.83,126.74,10.50162419]
[1769018218981,1.31829882,126.83,126.75,3.13280764]
[1769018219479,8.41884092,126.86,126.76,3.13280764]
[1769018220278,1.31824092,126.86,126.78,3.13280764]
[1769018220482,1.31824092,126.89,126.79,3.13280764]
[1769018221183,1.31824092,126.89,126.8,3.13280764]
[1769018222588,1.31824092,126.89,126.81,3.13280764]
[1769018222883,7.0986,126.9,126.81,3.13280764]
[1769018223486,7.099,126.89,126.81,3.13280764]
[1769018223883,1.31824092,126.9,126.81,3.13280764]
[1769018224980,1.31824092,126.9,126.81,10.23590764]
[1769018225988,1.31824092,126.9,126.82,3.13280764]
[1769018226288,1.31824092,126.9,126.83,3.13280764]
[1769018227595,8.41714092,126.89,126.81,3.13280764]
[1769018227885,1.31824092,126.89,126.81,3.13280764]
[1769018228090,1.31824092,126.89,126.81,10.23590764]
[1769018228289,1.31824092,126.89,126.82,3.13280764]
[1769018228491,1.31824092,126.92,126.82,3.13280764]
[1769018229998,7.098,126.91,126.83,3.13280764]
[1769018230199,1.31824092,126.91,126.83,3.13280764]
[1769018230697,8.41584092,126.92,126.83,10.23480764]
[1769018230999,11.06907347,126.92,126.84,3.13280764]
[1769018231892,7.0976,126.91,126.84,3.13280764]
[1769018232290,3.97147347,126.92,126.84,3.13280764]
[1769018233697,7.0984,126.9,126.84,3.13280764]
[1769018235383,1.31578486,126.9,126.81,6.00211156]
[1769018235587,1.31578486,126.89,126.81,3.34887901]
[1769018235784,3.96901741,126.88,126.81,3.34887901]
[1769018236387,2.65323255,126.88,126.81,3.34887901]
[1769018236588,1.31578486,126.91,126.82,3.34887901]
[1769018236902,1.31578486,126.91,126.84,3.34887901]
[1769018237896,7.0983,126.9,126.84,3.34887901]
[1769018240299,9.75153255,126.9,126.84,3.34887901]
[1769018240898,7.0983,126.9,126.84,3.34887901]
[1769018243709,7.0988,126.89,126.84,3.34887901]
[1769018243907,1.31578486,126.9,126.82,3.34887901]
[1769018244209,1.31578486,126.89,126.82,3.34887901]
[1769018244400,1.31578486,126.88,126.8,3.34887901]
[1769018244798,7.1005,126.86,126.8,3.34887901]
[1769018247297,7.0997,126.88,126.8,3.34887901]
[1769018247510,111.72798486,126.91,126.82,3.34887901]
[1769018247894,1.31578486,126.9,126.82,3.34887901]
[1769018248296,7.0988,126.89,126.82,3.34887901]
[1769018248701,8.41398486,126.9,126.82,3.34887901]
[1769018248902,8.41398486,126.9,126.83,3.34887901]
[1769018249206,1.31578486,126.91,126.81,3.34887901]
[1769018249406,1.31578486,126.9,126.81,3.34887901]
[1769018250410,7.0988,126.89,126.82,3.34887901]
[1769018254013,7.0988,126.89,126.76,110.5355]
[1769018254014,1.31578486,126.87,126.8,3.34887901]
[1769018254920,8.41568486,126.87,126.8,3.34887901]
[1769018255302,1.31578486,126.87,126.8,3.34887901]
[1769018255706,1.31578486,126.87,126.81,3.34887901]
[1769018256912,1.31578486,126.89,126.82,3.34887901]
[1769018257805,1.31578486,126.87,126.79,10.45317901]
[1769018258203,1.31578486,126.87,126.8,3.34887901]
[1769018260509,1.31578486,126.86,126.77,10.45377901]
[1769018260716,1.31578486,126.86,126.77,3.34887901]
[1769018261800,7.1004,126.87,126.77,3.34887901]
[1769018262013,1.31578486,126.89,126.77,3.34887901]
[1769018262214,1.31578486,126.91,126.79,3.34887901]
[1769018262404,1.31578486,126.9,126.79,3.34887901]
[1769018262812,8.41418486,126.9,126.81,3.34887901]
[1769018263607,1.31578486,126.89,126.81,3.34887901]
[1769018264010,8.41458486,126.89,126.81,3.34887901]
[1769018266815,1.31578486,126.89,126.81,3.34887901]
[1769018267017,1.31484797,126.87,126.75,3.40389374]
[1769018267211,7.1011,126.85,126.75,3.40389374]
[1769018267411,7.1011,126.85,126.78,3.40389374]
[1769018269716,7.1011,126.85,126.79,3.40389374]
[1769018270111,1.31484797,126.88,126.8,3.40389374]
[1769018270617,8.41584797,126.85,126.76,3.40389374]
[1769018271016,2.65609144,126.85,126.78,10.50849374]
[1769018271214,2.65609144,126.83,126.75,3.40389374]
[1769018272915,11.07303941,126.83,126.76,7.106]
[1769018273318,3.97093941,126.83,126.76,7.106]
[1769018275324,3.97093941,126.83,126.77,7.1054]
[1769018278929,1.31484797,126.83,126.77,7.1054]
[1769018279323,1.31484797,126.83,126.78,7.1049]
[1769018279723,1.31484797,126.83,126.75,3.40389374]
[1769018280232,1.31842436,126.86,126.78,3.27120291]
[1769018280734,1.31842436,126.86,126.79,7.1043]
[1769018281037,1.31842436,126.86,126.78,3.27120291]
[1769018281236,6.52422272,126.89,126.79,3.27120291]
[1769018281429,8.41642436,126.91,126.83,10.37310291]
[1769018281628,8.6582562,126.93,126.83,3.27120291]
[1769018281838,8.41492436,126.93,126.83,3.27120291]
[1769018282030,1.31842436,126.92,126.83,3.27120291]
[1769018283322,1.31842436,126.92,126.81,110.4898]
[1769018283323,1.31842436,126.92,126.84,3.27120291]
[1769018284330,1.31842436,126.92,126.85,7.1009]
[1769018284723,1.31842436,126.95,126.86,10.37150291]
[1769018284945,1.31842436,126.95,126.87,3.27120291]
[1769018285440,1.31842436,126.95,126.88,3.27120291]
[1769018285835,408.593,127.0,126.9,3.27120291]
[1769018285836,7.33983184,127.0,126.9,3.27120291]
[1769018286041,7.84264708,127.01,126.9,3.27120291]
[1769018286241,1.31842436,127.0,126.9,3.27120291]
[1769018288042,7.0933,126.99,126.9,3.27120291]
[1769018288639,8.41172436,126.99,126.9,3.27120291]
[1769018290842,7.0939,126.98,126.9,3.27120291]
[1769018293247,111.64192436,127.01,126.91,3.27120291]
[1769018294141,1.31842436,127.0,126.91,3.27120291]
[1769018294338,7.0939,126.98,126.91,3.27120291]
[1769018295642,110.3334,127.0,126.91,3.27120291]
[1769018295849,111.65710079,126.99,126.91,3.27120291]
[1769018296743,1.31580079,126.98,126.91,3.27120291]
[1769018296942,7.095,126.96,126.88,10.3882115]
[1769018297244,7.095,126.96,126.88,3.2890115]
[1769018298347,7.095,126.96,126.89,3.2890115]
[1769018299652,1.31580079,126.97,126.89,3.2890115]
[1769018300251,1.31580079,126.97,126.89,10.3876115]
[1769018302151,1.31580079,126.96,126.87,7.0993]
[1769018302354,1.31580079,126.96,126.87,10.3883115]
[1769018302940,3.9678482,126.95,126.87,10.3883115]
[1769018303452,3.9678482,126.95,126.88,10.3882115]
[1769018307255,3.9678482,126.95,126.89,3.2890115]
[1769018307642,408.3749,127.0,126.89,3.2890115]
[1769018307643,9.74564741,126.99,126.9,3.2890115]
[1769018307854,1.37121242,127.01,126.9,3.2890115]
[1769018308057,2.65204741,127.03,126.96,3.2890115]
[1769018308268,3.9678482,127.05,126.97,3.2890115]
[1769018308460,1.31580079,127.05,126.98,5.94105891]
[1769018308757,1.31580079,127.08,127.0,3.2890115]
[1769018308956,1.31580079,127.08,127.01,3.2890115]
[1769018309258,3.96179478,127.09,126.97,110.353]
[1769018309454,2.64599399,127.07,126.99,3.2890115]
[1769018309759,3.96179478,127.07,126.99,3.2890115]
[1769018310153,2.64599399,127.05,126.96,3.2890115]
[1769018310951,8.40470079,127.07,126.97,3.2890115]
[1769018312059,1.31580079,127.06,126.97,3.2890115]
[1769018312251,1.31580079,127.05,126.97,3.2890115]
[1769018313662,8.40570079,127.05,126.97,3.2890115]
[1769018313859,1.31580079,127.04,126.95,3.2890115]
[1769018314364,1.31580079,127.02,126.95,3.2890115]
[1769018314761,1.31580079,127.02,126.92,3.2890115]
[1769018315964,7.0923,127.01,126.92,3.2890115]
[1769018317355,7.0928,127.0,126.92,3.2890115]
[1769018319671,7.0932,126.99,126.92,3.2890115]
[1769018320659,111.63090079,127.02,126.92,3.2890115]
[1769018321171,1.31580079,127.01,126.92,3.2890115]